Cogmind - Beta 15 @@@ ROGUE MODE // 2025.05.21 @ 01:00:27 Player: PieTheDye Result: Destroyed by T8-Q2W(R) with Subdweller Machine Gun Performance ------------- Evolutions (0) 0 Regions Visited (3) 600 Robots Destroyed (32) 160 Value Destroyed (609) 609 Prototype IDs (4) 80 Alien Tech Used (0) 0 Bonus (90) 90 TOTAL SCORE: 1539 Bonus ------- Follower Combat Kills 90 Cogmind --------- Core Integrity 0/250 Matter 271/300 Energy 250/250 System Corruption 2% Temperature Cool (0) Movement Core (850) Ox16 Location -10/Subcaves Parts ------- > --- POWER (1) -------- Ion Engine > --- PROPULSION (2) --- (None) > --- UTILITY (2) ------ High-capacity Storage Unit Structural Scanner > --- WEAPON (2) ------- Beam Cannon > --- INVENTORY (20) --- Light Ion Engine Improved Heat Sink Small Storage Unit High-capacity Battery (250) Visual Processing Unit Improved Terrain Scanner Seismic Detector EM Pulse Gun Beam Rifle Particle Gun Light Assault Rifle Light Cannon Light Cannon Rocket Launcher Peak State ------------ > --- POWER ------------ Ion Engine > --- PROPULSION ------- Wheel Wheel > --- UTILITY ---------- High-capacity Storage Unit Structural Scanner > --- WEAPON ----------- EM Pulse Gun Beam Rifle > --- INVENTORY -------- Ion Engine Light Ion Engine Improved Heat Sink Small Storage Unit High-capacity Battery Visual Processing Unit Improved Terrain Scanner Seismic Detector Particle Gun Beam Cannon Light Assault Rifle Light Cannon Light Cannon Grenade Launcher Rocket Launcher [Rating: 10] Favorites ----------- Power Ion Engine Engine Ion Engine Propulsion Wheel Wheel Wheel Utility High-capacity Storage Unit Device Structural Scanner Storage High-capacity Storage Unit Weapon Assault Rifle Energy Gun EM Pulse Gun Energy Cannon Beam Cannon Ballistic Gun Assault Rifle Launcher Grenade Launcher Build | -11 -10 -10 -10 ------- Run | Yrd Mat Min Sub Slots Evolved . | . . . . Power . | . . . . Propulsion . | . . . . Utility . | . . . . Weapon . | . . . . Parts Attached 24 | 7 10 7 . Power 5 | 1 3 1 . Engine 5 | 1 3 1 . Core . | . . . . Reactor . | . . . . Propulsion 4 | 2 1 1 . Treads . | . . . . Leg . | . . . . Wheel 4 | 2 1 1 . Hover . | . . . . Flight . | . . . . Utility 5 | 2 3 . . Device 2 | 1 1 . . Storage 3 | 1 2 . . Processor . | . . . . Hackware . | . . . . Protection . | . . . . Artifact . | . . . . Weapon 10 | 2 3 5 . Energy Gun 3 | 1 . 2 . Energy Cannon 1 | . . 1 . Ballistic Gun 4 | 1 2 1 . Ballistic Cannon . | . . . . Launcher 2 | . 1 1 . Special Weapon . | . . . . Impact Weapon . | . . . . Slashing Weapon . | . . . . Piercing Weapon . | . . . . Special Melee Weapon . | . . . . Unidentified Prototypes . | . . . . Parts Lost 12 | . 5 4 3 Power 3 | . 2 1 . Propulsion 4 | . 1 1 2 Utility . | . . . . Weapon 5 | . 2 2 1 Highest Loss Streak 2 | . 1 2 2 To Critical Strikes . | . . . . Average Backups 11 | 2 10 13 14 Power 1 | 1 1 1 1 Propulsion . | . . . . Utility 4 | . 3 6 6 Weapon 5 | . 4 6 7 Tool/Special . | . . . . Unused Backups 9 | . 2 . 7 Power 3 | . 2 . 1 Propulsion . | . . . . Utility 3 | . . . 3 Weapon 3 | . . . 3 Tool/Special . | . . . . Average Slot Usage (%) 94 | . 99 96 72 Engine 13 | . 13 14 14 Wheel 23 | . 27 25 5 Device 13 | . 13 14 14 Storage 14 | . 14 14 14 Energy Gun 2 | . 2 4 . Energy Cannon 5 | . . 9 14 Ballistic Gun 14 | . 24 6 . Launcher 4 | . . 8 9 Peak Build Rating 10 | 7 8 10 9 Average Rating 7 | 5 7 8 7 On Entrance 6 | . 7 8 9 Naked Turns . | . . . . Heaviest Build 52 | 13 50 52 52 Greatest Support 20 | 20 20 20 20 Greatest Overweight (x) 17 | . 2 5 17 Average Overweight (x) 2 | . 1 2 7 Largest Inventory Capacity 20 | 8 20 20 20 Average Capacity 18 | 6 18 20 20 Most Carried 15 | 5 13 15 14 Average Carried 11 | 2 10 13 14 Final Capacity 20 | 8 20 20 20 Final Carried 14 | 5 13 14 14 Class Distribution -------------------- 100% | Mutant Dominant Class ---------------- Mutant | -10/Materials Mutant | -10/Mines Mutant | -10/Subcaves Resources | -11 -10 -10 -10 ----------- Run | Yrd Mat Min Sub Matter Collected 819 | 231 310 278 . Remotely . | . . . . Salvage Created 926 | 25 512 363 26 Parts 65 | 4 36 18 7 Haulers Intercepted 1 | . 1 . . Recyclers Shooed 2 | . . 2 . Parts Field Recycled . | . . . . Retrieved Matter . | . . . . Parts Self-Destructed 6 | . . . 6 Prevented . | . . . . Kills | -11 -10 -10 -10 ------- Run | Yrd Mat Min Sub Combat Hostiles Destroyed 20 | . 12 4 4 Guns 13 | . 12 1 . Cannons 1 | . . . 1 AOE 6 | . . 3 3 Classes Destroyed 8 | 1 4 3 . Worker 1 | . . 1 . Tunneler 4 | 1 1 2 . Hauler 2 | . 2 . . Recycler 2 | . . 2 . Watcher 3 | . 3 . . Swarmer 10 | . 6 . 4 Grunt 8 | . 6 2 . Sentry 2 | . . 2 . Best Kill Streak 4 | 1 4 2 4 Combat Bots Only 4 | . 3 2 4 Max Kills in Single Turn 2 | 1 1 1 2 Gunslinging . | . . . . Exploded 2 | . . 1 2 Melee . | . . . . Uniques/NPCs Destroyed . | . . . . Combat | -11 -10 -10 -10 -------- Run | Yrd Mat Min Sub Hostile Shots Fired 114 | . 51 23 40 Missed 34 | . 8 7 19 Hits 80 | . 43 16 21 Projectile 80 | . 43 16 21 Damage Taken 1225 | . 602 310 313 Core 264 | . 94 111 59 Absorbed by Shields . | . . . . Regen/Repaired (Parts) 27 | . 27 . . Core Remaining (%) 100 | 100 . . . Volleys Fired 80 | 3 45 30 2 Largest 2 | 2 2 2 2 Hottest 100 | 60 60 100 90 Shots Fired 155 | 6 85 60 4 Gun 125 | 6 83 36 . Cannon 21 | . . 19 2 Launcher 9 | . 2 5 2 Special . | . . . . Kinetic 105 | 3 73 29 . Thermal 21 | . . 19 2 Explosive 9 | . 2 5 2 Electromagnetic 20 | 3 10 7 . Robot Hit Streak 6 | 2 5 6 . Robot Miss Streak 3 | 1 2 3 . Penetration Max . | . . . . Secondary Targets 2 | . 2 . . Max Gunslinging Chain 1 | . 1 . . Shots Hit Robots 90 | 3 52 35 . Core Hits 48 | 1 27 16 4 Critical Kills . | . . . . Critical Parts Destroyed . | . . . . Critical Strikes . | . . . . Melee Attacks . | . . . . Impact . | . . . . Slashing . | . . . . Piercing . | . . . . Sneak Attacks . | . . . . Combat Hostiles . | . . . . Follow-up Attacks . | . . . . Damage Inflicted 1558 | 40 763 589 166 Guns 882 | 40 654 188 . Cannons 209 | . . 175 34 Explosions 467 | . 109 226 132 Melee . | . . . . Ramming . | . . . . Kinetic 711 | 25 562 124 . Thermal 261 | . 24 203 34 Explosive 415 | . 85 198 132 Electromagnetic 171 | 15 92 64 . Impact . | . . . . Slashing . | . . . . Piercing . | . . . . Highest Corruption 2 | . 2 2 2 Average Corruption 2 | . 2 2 2 Corruption Purged . | . . . . Corruption Blocked . | . . . . Effects 26 | . 9 10 7 Message Errors 6 | . 3 1 2 Matter Fused 7 | . 2 3 2 Heat Flow Errors 2 | . 1 . 1 Energy Discharges 3 | . . 2 1 Data Loss (minor) 5 | . 2 3 . Data Loss (major) 2 | . 1 . 1 Alerts 1 | . . 1 . Overload Shots . | . . . . Overflow Damage 28 | . 12 16 . Projectiles . | . . . . Explosions 28 | . 12 16 . Melee . | . . . . Knockbacks . | . . . . Impact . | . . . . Kinetic . | . . . . Secondary . | . . . . Self-Inflicted Damage 116 | . 92 24 . Shots 3 | . 2 1 . Rammed . | . . . . Targets Rammed . | . . . . Kicked . | . . . . Crushed . | . . . . Highest Temperature 270 | . 270 120 213 Average Temperature 45 | . 56 36 113 Received Heat Transfer 360 | . 192 90 78 Siege Activations . | . . . . Martial Activations . | . . . . Shielding Activations . | . . . . Robots Disrupted 1 | . 1 . . Combat Hostiles . | . . . . Robots Corrupted . | . . . . Combat Hostiles . | . . . . Parts Fried 2 | . 2 . . Impact Corruptions . | . . . . Robots Melted . | . . . . Combat Hostiles . | . . . . Parts Melted . | . . . . Heat Transferred 544 | . 50 420 74 Parts Sabotaged . | . . . . Parts Stolen . | . . . . Parts Stripped . | . . . . Power Chain Reactions 2 | . 1 1 . Alert | -11 -10 -10 -10 ------- Run | Yrd Mat Min Sub Maximum Alert Level . | . . . . Low Security (%) 100 | 100 100 100 . Level 1 . | . . . . Level 2 . | . . . . Level 3 . | . . . . Level 4 . | . . . . Level 5 . | . . . . High Security . | . . . . Max Security . | . . . . Peak Influence 128 | 5 128 48 . Initial 24 | . . 24 . Average 27 | . 42 5 . Influence Increases 748 | 5 464 154 125 Destroy 0b10 Robot/C 400 | . 240 80 80 Destroy 0b10 Robot/NC 55 | 5 25 25 . Destroy Leader 68 | . 58 10 . Successful Hack 22 | . 22 . . Disable Machine 45 | . 45 . . Destroy Structure 83 | . 44 39 . Lose Combat Pursuer 75 | . 30 . 45 Influence Decreases 723 | 5 401 217 100 Entered New Map 39 | . . 39 . Time Decay 574 | 5 361 138 70 Lost Part 90 | . 40 40 10 Lost Ally 20 | . . . 20 Squads Dispatched 3 | . 3 . . Investigation 2 | . 2 . . Extermination . | . . . . Reinforcement 1 | . 1 . . Assault . | . . . . Garrison . | . . . . Intercept . | . . . . Searches Triggered . | . . . . Construction Impeded . | . . . . Haulers Reinforced . | . . . . Active Scanning Responses . | . . . . Cargo Convoy Interrupts . | . . . . Stealth | -11 -10 -10 -10 --------- Run | Yrd Mat Min Sub Distress Signals 2 | . 2 . . Communications Jammed . | . . . . Distress Signals . | . . . . Times Spotted 34 | . 22 4 8 Peak Tracking Total 5 | . 5 2 5 Tactical Retreats 3 | . 2 . 1 Traps | -11 -10 -10 -10 ------- Run | Yrd Mat Min Sub Traps Triggered 7 | . 3 1 3 Indirectly . | . . . . Trap Hack Attempts . | . . . . Triggered . | . . . . Disarmed . | . . . . Reprogrammed . | . . . . Reused . | . . . . Traps Extracted . | . . . . Installed . | . . . . Triggered . | . . . . Machines | -11 -10 -10 -10 ---------- Run | Yrd Mat Min Sub Machines Disabled 6 | . 4 2 . Max in Single Turn 2 | . 1 2 . Machines Repaired . | . . . . Machines Dismantled . | . . . . Machines Sabotaged . | . . . . Overloaded Fab Kills . | . . . . Hacking | -11 -10 -10 -10 --------- Run | Yrd Mat Min Sub Machines Accessed 10 | . 9 1 . Terminals 6 | . 6 . . Fabricators . | . . . . Repair Stations 1 | . 1 . . Recycling Units 2 | . 2 . . Scanalyzers . | . . . . Garrison Access . | . . . . Total Hacks 29 | . 28 1 . Successful 15 | . 14 1 . Failed 14 | . 14 . . Catastrophic . | . . . . Database Lockouts . | . . . . Manual 17 | . 17 . . Terminals 19 | . 19 . . Fabricators . | . . . . Repair Stations 3 | . 3 . . Recycling Units 6 | . 6 . . Scanalyzers . | . . . . Garrison Access . | . . . . Terminal Hacks 5 | . 4 1 . Prototype ID Bank 2 | . 2 . . Open Door 1 | . . 1 . Branch Access Points 1 | . 1 . . Patrol Status 1 | . 1 . . Fabricator Hacks . | . . . . Repair Station Hacks 2 | . 2 . . Scan Component 1 | . 1 . . Repair 1 | . 1 . . Recycling Unit Hacks 3 | . 3 . . Report Inventory 2 | . 2 . . Retrieve Components 1 | . 1 . . Scanalyzer . | . . . . Garrison Access Hacks . | . . . . Unauthorized Hacks 5 | . 5 . . Terminals 5 | . 5 . . Botnet 5 | . 5 . . Fabricators . | . . . . Repair Stations . | . . . . Recycling Units . | . . . . Scanalyzers . | . . . . Garrison Access . | . . . . Data Cores Recovered . | . . . . Used . | . . . . Hacking Detections 8 | . 8 . . Full Trace Events 3 | . 3 . . Feedback Events . | . . . . Feedback Blocked . | . . . . Robot Schematics Acquired . | . . . . Robots Built . | . . . . Authchips . | . . . . Time . | . . . . Total Robot Build Rating . | . . . . Part Schematics Acquired . | . . . . Parts Built . | . . . . Authchips . | . . . . Time . | . . . . Total Part Build Rating . | . . . . Parts Repaired 1 | . 1 . . Time 26 | . 26 . . Parts Recycled . | . . . . Recycled Matter . | . . . . Retrieved Matter . | . . . . Retrieved Components 1 | . 1 . . Parts Scanalyzed . | . . . . Part Schematics Acquired . | . . . . Parts Damaged . | . . . . Bothacking | -11 -10 -10 -10 ------------ Run | Yrd Mat Min Sub Used RIF Installer . | . . . . Robots Hacked . | . . . . Non-combat . | . . . . Combat . | . . . . Robot Hacks Applied . | . . . . Relay Couplers Released . | . . . . Fabnet Peak Effective % . | . . . . Robots Rewired 1 | . 1 . . Allies Hacked . | . . . . Hacks Repelled . | . . . . Allies | -11 -10 -10 -10 -------- Run | Yrd Mat Min Sub Total Allies 4 | . 1 3 . Largest Group 3 | . 1 3 3 Highest-Rated Group 40 | . 10 40 40 Highest-Rated Ally 16 | . 10 16 16 Total Orders . | . . . . Ally Attacks 9 | . . . 9 Total Damage 101 | . . . 101 Kills 3 | . . . 3 Allies Corrupted . | . . . . Allies Melted . | . . . . Intel | -11 -10 -10 -10 ------- Run | Yrd Mat Min Sub Active Infowar (turns) 2493 | 23 1255 833 382 Structural 1457 | . 242 833 382 Seismic 1036 | 23 1013 . . Robot Analysis Total . | . . . . Derelict Logs Recovered 1 | . . 1 . Drone Launches . | . . . . Drone Recoveries . | . . . . Exploration | -11 -10 -10 -10 ------------- Run | Yrd Mat Min Sub Turns Passed 2563 | 63 1285 833 382 Spaces Moved 1667 | 50 898 620 99 Core 37 | 3 . . 34 Treads . | . . . . Legs . | . . . . Wheels 1630 | 47 898 620 65 Hover . | . . . . Flight . | . . . . Fastest Speed 50 | 50 80 110 110 Average Speed 124 | 78 106 114 375 Slowest Speed 900 | 80 110 155 900 Overloaded Moves . | . . . . Propulsion Burnouts . | . . . . Robots Hopped . | . . . . Potential Cave-ins . | . . . . Cave-ins Triggered . | . . . . Exploration Rate (%) 52 | 3 97 96 15 Regions Visited 3 Branch Regions 2 Pre-discovered Areas 1 | . . 1 . Known Exits Taken 1 | . 1 . . Unknown Exits Taken 2 | 1 . 1 . Scrap Searched 1 | . . 1 . Spaces Dug 7 | . 7 . . Terrain Destroyed 128 | . 50 63 15 Melee . | . . . . Projectile . | . . . . AOE 128 | . 50 63 15 Terrain Rammed . | . . . . Walls Destroyed . | . . . . Machines Disabled . | . . . . Actions | -11 -10 -10 -10 --------- Run | Yrd Mat Min Sub Total 1989 | 64 1140 684 101 Wait 178 | . 158 20 . Move 1664 | 49 897 619 99 Hop . | . . . . Pick Up 24 | 5 15 4 . Fast Attach 9 | 7 1 1 . Attach 8 | . 5 3 . Detach . | . . . . Swap 12 | . 5 7 . Drop 3 | . 3 . . Fire 80 | 3 45 30 2 Melee . | . . . . Ram . | . . . . Kick . | . . . . Crush . | . . . . Escape Stasis . | . . . . Rewire 11 | . 11 . . Trap . | . . . . Miscellaneous . | . . . . Route ------- -11/Scrapyard -10/Materials (discovered 5 exits: [*Mat x3] / *Min / [*Sub]) -10/Mines (discovered 2 exits: [*Mat] / [*Sub]) -10/Subcaves History --------- Turn | Location | Event 48 | -11/Scrapyard | Discovered new exit (range 14) 64 | -11/Scrapyard | Entered Materials 77 | -10/Materials | Discovered new exit (range 15) 315 | -10/Materials | Build established: Mutant 565 | -10/Materials | Discovered new exit (range 15) 727 | -10/Materials | Discovered new exit (range 7) 957 | -10/Materials | Discovered new exit (range 8) 1016 | -10/Materials | Repaired Wheel 1067 | -10/Materials | Discovered new exit (range 4) 1205 | -10/Materials | Identified exit to Mines 1349 | -10/Materials | Entered Mines 1430 | -10/Mines | Met a Derelict who couldn't figure out how to use a Trap Extractor 1433 | -10/Mines | Core integrity fell below 50% 1463 | -10/Mines | Received a Rocket Launcher from a helpful Derelict 1487 | -10/Mines | Discovered new exit (range 7) 1684 | -10/Mines | Core integrity fell below 20% 2004 | -10/Mines | Learned location of Storage (-7) 2069 | -10/Mines | Assisted by bots powering up and referring to "LRC-V3" 2082 | -10/Mines | Learned 8 Materials zone layouts 2163 | -10/Mines | Discovered new exit (range 11) 2182 | -10/Mines | Entered Subcaves 2182 | -10/Subcaves | Accompanied by 3 allies 2564 | -10/Subcaves | Destroyed by T8-Q2W(R) with Subdweller Machine Gun Last Messages --------------- 02347_ System corrupted: Substantial component data lost. 02364_ System corrupted: Heat flow error (+253). 02425_ NO-J2T(u) builds Twisted Machinery. 02439_ Trooper 1a destroyed. 02441_ S-10 Pest destroyed. 02441_ NO-J2T(u) builds Twisted Machinery. 02444_ S-10 Pest destroyed. 02447_ Grenade Launcher destroyed. 02449_ NO-J2T(u) builds Twisted Machinery. 02451_ Lgt. Assault Rifle fries itself beyond repair. 02452_ Flight Unit fries itself beyond repair. 02452_ Lgt. Assault Rifle fries itself beyond repair. 02452_ Lgt. Ion Engine fries itself beyond repair. 02452_ The unstable cave ceiling collapses. 02455_ Flight Unit fries itself beyond repair. 02471_ EK-7ZY(O) collects matter. 02473_ The unstable cave ceiling collapses. 02481_ System corrupted: Energy discharge (-97). 02482_ EK-7ZY(O) puts together Mak. Light Armor Plating. 02501_ System corrupted: Matter fused (-7). Map ----- +----------------------------------------------------+ | ??????????????#### ###### "??" ??????????????? | | ??????????????#### ###### "?"#"??????????????? | | ???????????????### # #"" ###"????????????? | | ???????????????## ## """""###""???????????? | | ???????????????### ## "#" " "###??????????? | | ???????????????### ## # ## " ###??????????? | | ????????????????### ## ## #####???????? | | ????????????????## ## ## ######??????? | | ????????????????### # ## ### ?????? | | ????????????????## # ## # ## ?????? | | ????????????????### # % ?????? | | ????????????????## ?????? | | ????????????????## =% % ?????? | | ????????????????#### ## # * # ##??????? | | ????????????????######### #######??????? | | ??????????????????######## ######???????? | | ??????????????????######## ##???????????? | | ??????????????????####### ## ##???????????? | | ?????????????????$## R #### ##???????????? | | ??????????????????<##" # ##### %##???????????? | | ????????????????? # ##### ##???????????? | | ???????????????? #$#< # ##### ##???????????? | | ????????????????? ### # #### ???????????? | | ?????????????????##### # ??????????? | | ????????????????????## ###### ? % ?????????? | | ????????????????????## @ ########?? ?????????? | | ????????????????????## ###???????????????????? | | ????????????????????## ????????????????????? | | ????????????????????## ##?????????????????? | | ????????????????????##### ## ##?????????????????? | | ????????????????????######## ?????????????????? | | ???????????????????????##### ????????????????? | | ????????????????????????????? ???????????????? | | ????????????????????????????? ??????????????? | | ????????????????????????????? ##???????????? | | ?????????????????????????????? ###???????????? | | ??????????????????????????????? ###???????????? | | ???????????????????????????????? ##????????????? | | ?????????????????????????????????????????????????? | | ?????????????????????????????????????????????????? | | ?????????????????????????????????????????????????? | | ?????????????????????????????????????????????????? | | ?????????????????????????????????????????????????? | | ?????????????????????????????????????????????????? | | ?????????????????????????????????????????????????? | | ?????????????????????????????????????????????????? | | ?????????????????????????????????????????????????? | | ?????????????????????????????????????????????????? | | ?????????????????????????????????????????????????? | | ?????????????????????????????????????????????????? | +----------------------------------------------------+ Best States ------------- Heat Dissipation 25 Energy Generation 10 Energy Capacity 500 Matter Stores 300 Matter Capacity 300 Sight Range 16 Terrain Scan Density 10 Evasion (%) 44 Item Schematics ----------------- None Robot Schematics ------------------ None Fabricated ------------ Nothing Repaired ---------- Wheel | 32% | -10/Materials Alien Tech Used ----------------- None Achievements -------------- None Challenges ------------ None Game ------ Seed RecyclingFieldDriver Manual? 0 Play Time 00:24:33 Cumulative 33.0 hours Start 2025.05.21 @ 00:37:31 End 2025.05.21 @ 01:00:27 Sessions 1 Manual Loads 0 Difficulty Rogue Special Mode None Game No. 42 Rogue 42 Adventurer 0 Explorer 0 Win Type - Total 0 Types 0/0/0/0/0/0/0/0/0/0 Lore% 16 Gallery% 26 Achievement% 28 Wizard Run 0 Options --------- Layout 0 ASCII 0 Keyboard 0 Movement Numpad Keybinds 0 Fullscreen 1 Font 18/SmallcapsGlow Map View 76x50 Zoom Use 0% Tactical HUD 1 Map Filters NONE Filters NONE Steam 1 RUN: 5a6c9ae9-fbfc-4d3e-81c7-919857d37690